fUSD/lending_fUSD_20260208
["ID","MTS","AMOUNT","RATE_DAILY","PERIOD"]
[404775202,1770532338862,166.66,0.00028838,30]
[404775203,1770532417784,183.505403,0.000353,31]
[404775204,1770532419399,183.505403,0.000353,31]
[404775205,1770532420842,183.505403,0.000353,31]
[404775206,1770532422263,183.505403,0.000353,31]
[404775207,1770532447959,151.0,0.000353,31]
[404775208,1770532536753,500.0,0.00027959,30]
[404775209,1770532539287,500.0,0.00035581,30]
[404775210,1770532557165,500.0,0.00027959,30]
[404775211,1770532702071,500.0,0.00027959,30]
[404775212,1770532748690,151.0,0.0003526,31]
[404775214,1770533015324,151.0,0.0003526,31]
[404775215,1770533016795,151.0,0.0003526,31]
[404775216,1770533018261,151.0,0.0003526,31]
[404775217,1770533019767,151.0,0.0003526,31]
[404775218,1770533045974,151.0,0.0003526,31]
[404775220,1770533235421,151.0,0.00035616,30]
[404775221,1770533236073,156.587,0.00035616,30]
[404775222,1770533236682,162.380719,0.00035616,30]
[404775223,1770533237326,168.3888056,0.00035616,30]
[404775224,1770533237952,174.61919141,0.00035616,30]
[404775225,1770533238652,181.08010149,0.00035616,30]
[404775226,1770533239289,187.78006525,0.00035616,30]
[404775227,1770533239945,194.72792766,0.00035616,30]
[404775228,1770533240696,201.93286099,0.00035616,30]
[404775229,1770533241325,209.40437684,0.00035616,30]
[404775230,1770533241944,217.15233878,0.00035616,30]
[404775231,1770533242577,225.18697532,0.00035616,30]
[404775232,1770533243183,233.51889341,0.00035616,30]
[404775233,1770533243830,242.15909246,0.00035616,30]
[404775234,1770533244483,251.11897888,0.00035616,30]
[404775235,1770533245111,260.4103811,0.00035616,30]
[404775236,1770533245780,270.0455652,0.00035616,30]
[404775237,1770533246399,280.03725112,0.00035616,30]
[404775238,1770533247020,290.39862941,0.00035616,30]
[404775239,1770533247635,301.1433787,0.00035616,30]
[404775255,1770533431695,-171.63,0.0002142,2]
[404775256,1770533431707,-500.0,0.0002246,2]
[404775257,1770533431716,-270.80046435,0.0002246,2]
[404775258,1770533431727,-1000.0,0.00023008,2]
[404775259,1770533431737,-499.94842856,0.00023556,2]
[404775260,1770533431747,-160.0,0.00025498,2]
[404775261,1770533431757,-514.445339,0.00025508,2]
[404775262,1770533431768,-160.0,0.00026063,2]
[404775263,1770533431778,-200.0,0.00026364,2]
[404775264,1770533431787,-615.12363624,0.00026389,2]
[404775265,1770533431820,-302.04407022,0.00026389,2]
[404775488,1770533438132,-282.83229354,0.00026389,2]
[404775489,1770533438142,-600.0,0.0002639,2]
[404775490,1770533438152,-600.0,0.0002639,2]
[404775491,1770533438161,-436.36,0.0002639,2]
[404775492,1770533438170,-300.0,0.00026392,2]
[404775493,1770533438178,-300.0,0.00026392,2]
[404775494,1770533438188,-1944.65,0.00026393,2]
[404775495,1770533438197,-1944.65,0.00026441,2]
[404775496,1770533438207,-1944.65,0.0002649,2]
[404775497,1770533438217,-13814.84,0.00026491,2]
[404775498,1770533438227,-1944.65,0.00026538,2]
[404775499,1770533438237,-1944.65,0.00026587,2]
[404775501,1770533438247,-1000.0,0.00026611,2]
[404775503,1770533438257,-500.0,0.00026633,2]
[404775504,1770533438268,-1944.65,0.00026636,2]
[404775505,1770533438277,-1944.65,0.00026684,2]
[404775506,1770533438287,-522.4859795,0.00026687,2]
[404775507,1770533438296,-9999.99,0.00026697,2]
[404775508,1770533438306,-1944.65,0.00026733,2]
[404775509,1770533438316,-1944.65,0.00026782,2]
[404775510,1770533438326,-154.0,0.00026829,2]
[404775511,1770533438335,-1944.65,0.0002683,2]
[404775512,1770533438345,-1944.65,0.00026879,2]
[404775513,1770533438356,-3240.0,0.00026919,2]
[404775514,1770533438365,-150.99,0.00026919,2]
[404775515,1770533438375,-3830.86,0.00026919,2]
[404775516,1770533438385,-2397.31,0.00026919,2]
[404775518,1770533438394,-9999.99,0.00026919,2]
[404775520,1770533438404,-6788.54,0.00026919,2]
[404775522,1770533438414,-243.89,0.00026919,2]
[404775524,1770533438424,-1944.65,0.00026927,2]
[404775525,1770533438434,-1944.65,0.00026976,2]
[404775526,1770533438444,-1944.65,0.00027025,2]
[404775528,1770533438453,-1944.65,0.00027073,2]
[404775530,1770533438463,-1944.65,0.00027122,2]
[404775531,1770533438473,-1944.65,0.00027171,2]
[404775532,1770533438483,-1944.65,0.00027219,2]
[404775533,1770533438493,-1944.65,0.00027268,2]
[404775534,1770533438502,-1944.65,0.00027317,2]
[404775535,1770533438511,-150.0,0.00027372,2]
[404775536,1770533438521,-1447.25,0.00027397,2]
[404775537,1770533438531,-1000.0,0.00027397,20]
[404775538,1770533438541,-500.0,0.00027397,2]
[404775539,1770533438550,-10000.0,0.0002746,2]
[404775540,1770533438559,-300.0,0.00027464,2]
[404775541,1770533438568,-173.6303066,0.000275,2]
[404775542,1770533438578,-183.17974977,0.000275,2]
[404775543,1770533438587,-12528.0,0.00027534,2]
[404775544,1770533438597,-212.7,0.00027559,14]
[404775545,1770533438606,-940.238,0.00027559,17]
[404775546,1770533438616,-487.0,0.0002756,2]
[404775547,1770533438626,-487.0,0.0002756,2]
[404775548,1770533438635,-487.0,0.0002756,2]
[404775549,1770533438644,-487.0,0.0002756,2]
[404775550,1770533438653,-500.0,0.00027671,2]
[404775551,1770533438663,-150.0,0.00027758,20]
[404775552,1770533438673,-11702.55940745,0.0002776,2]
[404775553,1770533438682,-212.7,0.00027833,14]
[404775554,1770533438691,-500.0,0.00027855,2]
[404775555,1770533438700,-500.0,0.00027855,2]
[404775556,1770533438710,-1276.09917267,0.00027855,2]
[404775557,1770533438719,-500.0,0.00027855,2]
[404775558,1770533438729,-500.0,0.00027855,2]
[404775559,1770533438738,-1276.09917267,0.00027855,2]
[404775560,1770533438748,-500.0,0.00027855,2]
[404775561,1770533438758,-500.0,0.00027855,2]
[404775562,1770533438767,-1276.09917267,0.00027855,2]
[404775563,1770533438777,-500.0,0.00027855,2]
[404775564,1770533438787,-500.0,0.00027855,2]
[404775565,1770533438797,-1276.09917267,0.00027855,2]
[404775566,1770533438806,-500.0,0.00027855,2]
[404775567,1770533438827,-500.0,0.00027855,2]
[404775568,1770533438838,-1276.09917267,0.00027855,2]
[404775569,1770533438848,-582.25700436,0.00027855,2]
[404775570,1770533438859,-500.0,0.00027855,2]
[404775571,1770533438868,-1276.09917267,0.00027855,2]
[404775572,1770533438878,-500.0,0.00027855,2]
[404775573,1770533438888,-1276.09917267,0.00027855,2]
[404775574,1770533438897,-500.0,0.00027855,2]
[404775575,1770533438907,-1276.09917267,0.00027855,2]
[404775576,1770533438916,-500.0,0.00027855,2]
[404775577,1770533438926,-1276.09917267,0.00027855,2]
[404775578,1770533438935,-500.0,0.00027855,2]
[404775579,1770533438945,-1276.09917267,0.00027855,2]
[404775580,1770533438954,-500.0,0.00027855,2]
[404775581,1770533438964,-1276.09917267,0.00027855,2]
[404775582,1770533438974,-500.0,0.00027855,2]
[404775583,1770533438984,-1276.09917267,0.00027855,2]
[404775584,1770533438994,-1276.09917267,0.00027855,2]
[404775585,1770533439004,-1276.09917267,0.00027855,2]
[404775586,1770533439014,-1276.09917267,0.00027855,2]
[404775587,1770533439026,-500.0,0.00027855,2]
[404775588,1770533439036,-1276.09917267,0.00027855,2]
[404775589,1770533439045,-500.0,0.00027855,2]
[404775590,1770533439055,-1276.09917267,0.00027855,2]
[404775591,1770533439066,-500.0,0.00027855,2]
[404775592,1770533439075,-1276.09917267,0.00027855,2]
[404775593,1770533439085,-500.0,0.00027855,2]
[404775594,1770533439094,-1276.09917267,0.00027855,2]
[404775595,1770533439107,-500.0,0.00027855,2]
[404775596,1770533439117,-1276.09917267,0.00027855,2]
[404775597,1770533439127,-500.0,0.00027855,2]
[404775598,1770533439137,-1276.09917267,0.00027855,2]
[404775599,1770533439147,-1276.09917267,0.00027855,2]
[404775600,1770533439157,-500.0,0.00027855,2]
[404775601,1770533439168,-1276.09917267,0.00027855,2]
[404775602,1770533439178,-447.73365328,0.00027855,2]
[404775603,1770533439188,-1276.09917267,0.00027855,2]
[404775604,1770533439198,-500.0,0.00027855,2]
[404775605,1770533439207,-1276.09917267,0.00027855,2]
[404775606,1770533439217,-500.0,0.00027855,2]
[404775607,1770533439227,-1276.09917267,0.00027855,2]
[404775608,1770533439238,-1276.09917267,0.00027855,2]
[404775609,1770533439248,-1276.09917267,0.00027855,2]
[404775610,1770533439257,-1276.09917267,0.00027855,2]
[404775611,1770533439267,-1276.09917267,0.00027855,2]
[404775612,1770533439278,-1276.09917267,0.00027855,2]
[404775613,1770533439288,-1276.09917267,0.00027855,2]
[404775614,1770533439298,-1276.09917267,0.00027855,2]
[404775615,1770533439307,-1276.09917267,0.00027855,2]
[404775616,1770533439317,-1276.09917267,0.00027855,2]
[404775617,1770533439327,-1276.09917267,0.00027855,2]
[404775618,1770533439338,-1276.09917267,0.00027855,2]
[404775619,1770533439349,-1276.09917267,0.00027855,2]
[404775620,1770533439359,-1276.09917267,0.00027855,2]
[404775621,1770533439369,-1276.09917267,0.00027855,2]
[404775622,1770533439380,-1276.09917267,0.00027855,2]
[404775623,1770533439390,-1276.09917267,0.00027855,2]
[404775624,1770533439400,-1276.09917267,0.00027855,2]
[404775625,1770533439410,-350.16204926,0.00027855,2]
[404775626,1770533439540,-925.93712341,0.00027855,2]
[404775627,1770533439551,-1276.09917267,0.00027855,2]
[404775628,1770533439560,-1276.09917267,0.00027855,2]
[404775629,1770533439571,-1276.09917267,0.00027855,2]
[404775630,1770533439581,-21493.11023364,0.00027857,2]
[404775631,1770533439592,-711.50777746,0.00027857,2]
[404775632,1770533439601,-151.0,0.00027857,7]
[404775633,1770533439611,-151.0,0.00027857,7]
[404775634,1770533439620,-500.0,0.00027858,2]
[404775635,1770533439629,-500.0,0.00027859,2]
[404775636,1770533439639,-500.0,0.00027859,2]
[404775637,1770533439648,-72061.5720126,0.0002786,2]
[404775638,1770533439657,-9039.5757634,0.0002786,2]
[404775639,1770533439666,-352203.7539568,0.0002786,2]
[404775640,1770533439675,-503.23813055,0.00027945,2]
[404775641,1770533439685,-155.0,0.00027957,2]
[404775642,1770533439694,-1000.0,0.00027958,2]
[404775643,1770533439703,-291.68542325,0.00028,2]
[404775644,1770533439712,-212.7,0.00028107,14]
[404775645,1770533439721,-212.0,0.00028231,2]
[404775646,1770533439731,-4821.38,0.00028269,2]
[404775647,1770533439740,-212.7,0.00028381,14]
[404775648,1770533439750,-10000.0,0.00028463,7]
[404775649,1770533439759,-160.0,0.00028463,7]
[404775650,1770533439768,-160.0,0.00028463,7]
[404775651,1770533439777,-254.0,0.00028496,2]
[404775652,1770533439787,-420.0,0.0002855,2]
[404775653,1770533439796,-212.7,0.00028655,14]
[404775654,1770533439805,-5000.0,0.00028739,2]
[404775655,1770533439815,-162.402,0.00028967,2]
[404775656,1770533439824,-1347.146,0.00028967,2]
[404775657,1770533439833,-1435.378,0.00028967,2]
[404775658,1770533439842,-629.944,0.00028967,2]
[404775659,1770533439852,-3484.0,0.00028967,2]
[404775660,1770533439861,-1272.0,0.00028967,2]
[404775661,1770533439871,-150.505,0.00028967,2]
[404775662,1770533439880,-6585.0,0.00028967,2]
[404775663,1770533439889,-412.0,0.00028967,2]
[404775664,1770533439898,-3255.0,0.00028967,2]
[404775665,1770533439907,-11702.55940742,0.00029573,2]
[404775666,1770533439916,-21493.11023355,0.0002966,2]
[404775667,1770533439925,-1000.0,0.00029998,2]
[404775668,1770533439935,-152.56,0.0003,2]
[404775669,1770533439946,-119708.0,0.000301,2]
[404775670,1770533439955,-711.5077774,0.00030175,2]
[404775671,1770533439966,-164.62786293,0.000302,2]
[404775672,1770533439976,-258.7,0.00030516,2]
[404775673,1770533439987,-258.7,0.00030572,2]
[404775674,1770533439997,-5529.0,0.000306,3]
[404775675,1770533440008,-258.7,0.00030628,2]
[404775676,1770533440016,-258.7,0.00030684,2]
[404775677,1770533440028,-258.7,0.00030741,2]
[404775678,1770533440037,-168.0,0.00030767,2]
[404775679,1770533440047,-258.7,0.00030797,2]
[404775680,1770533440057,-173.6303066,0.00030816,2]
[404775681,1770533440066,-258.7,0.00030853,2]
[404775682,1770533440076,-587.0,0.00030885,2]
[404775683,1770533440085,-258.7,0.00030909,2]
[404775684,1770533440095,-258.7,0.00030965,2]
[404775685,1770533440106,-258.7,0.00031022,2]
[404775686,1770533440115,-258.7,0.00031078,2]
[404775687,1770533440124,-258.7,0.00031134,2]
[404775688,1770533440133,-258.7,0.0003119,2]
[404775689,1770533440143,-5529.0,0.000312,5]
[404775690,1770533440151,-258.7,0.00031247,2]
[404775691,1770533440160,-258.7,0.00031303,2]
[404775692,1770533440170,-168.0,0.00031315,2]
[404775693,1770533440179,-168.0,0.00031337,2]
[404775694,1770533440190,-258.7,0.00031359,2]
[404775695,1770533440200,-11702.55940742,0.00031387,2]
[404775696,1770533440210,-258.7,0.00031415,2]
[404775697,1770533440220,-153.24981983,0.00031461,2]
[404775698,1770533440230,-21493.11023355,0.00031462,2]
[404775699,1770533440240,-258.7,0.00031471,2]
[404775700,1770533440249,-258.7,0.00031528,2]
[404775701,1770533440259,-258.7,0.00031584,2]
[404775702,1770533440270,-151.0,0.00031906,7]
[404775703,1770533440281,-155.0,0.00031946,2]
[404775704,1770533440291,-151.0,0.00031964,7]
[404775706,1770533440301,-1335.0,0.00031967,2]
[404775708,1770533440310,-1411.0,0.00031967,2]
[404775710,1770533440319,-616.0,0.00031967,2]
[404775712,1770533440328,-3484.0,0.00031967,2]
[404775714,1770533440338,-1272.0,0.00031967,2]
[404775716,1770533440347,-6585.0,0.00031967,2]
[404775718,1770533440357,-412.0,0.00031967,2]
[404775720,1770533440366,-2017.0019877,0.00032028,2]
[404775722,1770533440375,-150.13,0.00032173,2]
[404775724,1770533440384,-150.0,0.00032173,2]
[404775726,1770533440393,-150.158,0.00032173,2]
[404775728,1770533440402,-150.0,0.00032173,2]
[404775730,1770533440411,-150.0,0.00032173,2]
[404775732,1770533440420,-150.13,0.00032173,2]
[404775734,1770533440430,-154.756001,0.00032271,7]
[404775736,1770533440439,-151.0,0.00032271,7]
[404775738,1770533440449,-151.0,0.00032271,7]
[404775741,1770533440463,-151.0,0.00032271,7]
[404775743,1770533440472,-151.0,0.00032271,7]
[404775745,1770533440482,-151.0,0.00032271,7]
[404775746,1770533440491,-16079.1101037,0.00032345,2]
[404775747,1770533440500,-78587.2800252,0.00032345,2]
[404775748,1770533440511,-151.0,0.00032345,7]
[404775749,1770533440520,-212.89576,0.00032345,7]
[404775750,1770533440531,-15000.0,0.00032463,7]
[404775751,1770533440542,-711.5077774,0.00032492,2]
[404775752,1770533440552,-1401.39,0.000325,7]
[404775753,1770533440562,-168.0,0.00032505,2]
[404775754,1770533440573,-168.0,0.00032513,2]
[404775755,1770533440583,-168.0,0.00032552,2]
[404775756,1770533440594,-509.0,0.00032616,2]
[404775757,1770533440605,-168.0,0.00032676,2]
[404775758,1770533440617,-450.0539765,0.00032958,2]
[404775759,1770533440627,-168.0,0.00033,14]
[404775760,1770533440638,-168.0,0.00033002,2]
[404775761,1770533440649,-166.66,0.00033136,2]
[404775762,1770533440660,-152.56,0.0003319,2]
[404775763,1770533440671,-11702.55940742,0.000332,2]
[404775764,1770533440680,-21493.11023355,0.00033265,2]
[404775765,1770533440690,-11419.0,0.0003329,5]
[404775766,1770533440700,-168.0,0.00033294,2]
[404775767,1770533440709,-207.23557636,0.00033335,2]
[404775768,1770533440718,-3587.7344124,0.00033345,2]
[404775769,1770533440727,-17535.1923776,0.00033345,2]
[404775770,1770533440736,-823.0,0.00033411,2]
[404775771,1770533440746,-168.0,0.00033592,2]
[404775772,1770533440755,-1000.0,0.00033747,2]
[404775773,1770533440764,-150.77244146,0.00033873,5]
[404775774,1770533440774,-200.0,0.00034082,2]
[404775775,1770533440783,-173.6303066,0.00034132,2]
[404775776,1770533440792,-424.25291011,0.00034132,2]
[404775777,1770533440801,-600.0,0.00034148,2]
[404775778,1770533440810,-600.0,0.00034148,2]
[404775779,1770533440819,-436.36,0.00034148,2]
[404775780,1770533440829,-1500.0,0.00034206,15]
[404775781,1770533440838,-1500.0,0.00034206,15]
[404775782,1770533440847,-2605.711302,0.00034206,15]
[404775783,1770533440857,-166.66,0.0003423,2]
[404775784,1770533440867,-500.0,0.00034244,2]
[404775785,1770533440876,-500.0,0.00034245,2]
[404775786,1770533440885,-500.424752,0.00034246,2]
[404775787,1770533440896,-509.0,0.0003425,4]
[404775788,1770533440907,-200.0,0.00034553,2]
[404775789,1770533440919,-711.5077774,0.0003481,2]
[404775790,1770533440929,-1008.43830507,0.00034904,20]
[404775791,1770533440939,-1068.3856888,0.00034904,20]
[404775792,1770533440949,-1064.23265804,0.00034904,20]
[404775793,1770533440961,-1081.28809963,0.00034904,20]
[404775794,1770533440971,-1145.63410589,0.00034904,20]
[404775795,1770533440982,-1082.90689612,0.00034904,20]
[404775796,1770533440991,-1069.39213227,0.00034904,20]
[404775797,1770533441000,-1089.12691534,0.00034904,20]
[404775798,1770533441010,-150.0,0.00034904,2]
[404775799,1770533441021,-200.0,0.00034913,2]
[404775800,1770533441035,-1335.0,0.00034967,2]
[404775801,1770533441044,-1411.0,0.00034967,2]
[404775802,1770533441054,-616.0,0.00034967,2]
[404775803,1770533441065,-3484.0,0.00034967,2]
[404775804,1770533441075,-1272.0,0.00034967,2]
[404775805,1770533441085,-6585.0,0.00034967,2]
[404775806,1770533441096,-412.0,0.00034967,2]
[404775807,1770533441107,-200.0,0.0003498,2]
[404775808,1770533441116,-250.0,0.00035,7]
[404775809,1770533441125,-11702.55940742,0.00035013,2]
[404775810,1770533441135,-21493.11023355,0.00035067,2]
[404775811,1770533441144,-155.0,0.00035141,2]
[404775812,1770533441159,-150.0,0.00035173,2]
[404775813,1770533441174,-150.0,0.00035173,2]
[404775814,1770533441183,-150.0,0.00035173,2]
[404775815,1770533441192,-150.0,0.00035173,2]
[404775816,1770533441202,-150.0,0.00035173,2]
[404775817,1770533441211,-150.0,0.00035173,2]
[404775818,1770533441220,-424.25291011,0.00035248,2]
[404775819,1770533441234,-151.0,0.00035257,14]
[404775820,1770533441244,-123103.44549684,0.0003526,2]
[404775821,1770533441254,-151.0,0.0003526,28]
[404775822,1770533441264,-151.0,0.0003526,28]
[404775823,1770533441273,-166.66,0.00035324,2]
[404775824,1770533441283,-1000.0,0.00035568,2]
[404775825,1770533441292,-1087.9262344,0.0003558,2]
[404775826,1770533441301,-200.0,0.00035616,2]
[404775827,1770533441311,-200.0,0.00035616,2]
[404775828,1770533441320,-200.0,0.00035616,2]
[404775829,1770533441329,-200.0,0.00035616,2]
[404775830,1770533441338,-300.51862815,0.00035673,5]
[404775831,1770533441348,-182.34249586,0.00035694,15]
[404775832,1770533441357,-183.17974977,0.0003579,8]
[404775833,1770533441367,-509.0,0.00035884,6]
[404775834,1770533441376,-329.93,0.00035953,2]
[404775835,1770533441385,-200.0,0.00035972,2]
[404775836,1770533441395,-200.0,0.00035972,2]
[404775837,1770533441404,-200.0,0.00035972,2]
[404775838,1770533441413,-200.0,0.00035972,2]
[404775839,1770533441423,-245.44,0.00035973,2]
[404775840,1770533441432,-152.56,0.0003599,2]
[404775841,1770533441442,-185509.86715628,0.00036,2]
[404775842,1770533441451,-151.0,0.00036,31]
[404775843,1770533441460,-151.0,0.00036,31]
[404775844,1770533441470,-151.0,0.00036,7]
[404775845,1770533441479,-200.0,0.00036001,2]
[404775846,1770533441488,-2711.1,0.00036138,2]
[404775847,1770533441499,-1152.0,0.00036144,2]
[404775848,1770533441508,-200.0,0.00036206,2]
[404775849,1770533441518,-1338.59,0.00036293,120]
[404775850,1770533441527,-200.0,0.00036332,2]
[404775851,1770533441536,-200.0,0.00036332,2]
[404775852,1770533441546,-200.0,0.00036332,2]
[404775853,1770533441555,-200.0,0.00036332,2]
[404775854,1770533441564,-424.25291011,0.00036362,2]
[404775855,1770533441574,-166.66,0.00036418,2]
[404775856,1770533441583,-200.0,0.00036547,2]
[404775857,1770533441592,-200.0,0.00036627,2]
[404775858,1770533441601,-150.0,0.00036649,2]
[404775859,1770533441611,-168.0,0.00036669,2]
[404775860,1770533441620,-200.0,0.00036695,2]
[404775861,1770533441630,-200.0,0.00036695,2]
[404775862,1770533441639,-200.0,0.00036695,2]
[404775863,1770533441648,-200.0,0.00036695,2]
[404775864,1770533441658,-200.0,0.00036769,2]
[404775865,1770533441667,-11702.55940742,0.00036827,2]
[404775866,1770533441677,-21493.11023355,0.0003687,2]
[404775867,1770533441686,-600.0,0.00036937,2]
[404775868,1770533441695,-600.0,0.00036937,2]
[404775869,1770533441705,-436.36,0.00036937,2]
[404775870,1770533441715,-250.0,0.00037,7]
[404775871,1770533441724,-2000.0,0.00037,120]
[404775872,1770533441733,-1453.59,0.00037,120]
[404775873,1770533441743,-200.0,0.00037062,2]
[404775874,1770533441754,-200.0,0.00037062,2]
[404775875,1770533441763,-200.0,0.00037062,2]
[404775876,1770533441772,-200.0,0.00037062,2]
[404775877,1770533441785,-271.05,0.00037067,120]
[404775878,1770533441800,-711.5077774,0.00037127,2]
[404775879,1770533441812,-992.1,0.0003725,7]
[404775880,1770533441822,-200.0,0.00037266,2]
[404775881,1770533441832,-173.6303066,0.00037448,2]
[404775882,1770533441843,-424.25291011,0.00037478,2]
[404775883,1770533441853,-1000.0,0.00037497,2]
[404775884,1770533441864,-1457.64217,0.000375,120]
[404775885,1770533441875,-166.66,0.00037511,2]
[404775886,1770533441887,-509.0,0.00037518,8]
[404775887,1770533441899,-992.1,0.00037793,30]
[404775888,1770533441910,-151.0,0.00037964,14]
[404775889,1770533441920,-1335.0,0.00037967,2]
[404775890,1770533441930,-1411.0,0.00037967,2]
[404775891,1770533441940,-616.0,0.00037967,2]
[404775892,1770533441950,-1272.0,0.00037967,2]
[404775893,1770533441959,-5632.109,0.00037967,2]
[404775894,1770533441968,-412.0,0.00037967,2]
[404775895,1770533441978,-250.0,0.00038,7]
[404775896,1770533441988,-160.0,0.00038,120]
[404775897,1770533442001,-155.0,0.00038335,2]
[404775898,1770533442011,-992.1,0.00038337,30]
[404775899,1770533442020,-150.0,0.00038482,2]
[404775900,1770533442033,-213.78068776,0.00038548,120]
[404775901,1770533442043,-424.25291011,0.00038592,2]
[404775902,1770533442052,-166.66,0.00038605,2]
[404775903,1770533442064,-11702.55940742,0.0003864,2]
[404775904,1770533442073,-200.0,0.00038662,2]
[404775905,1770533442083,-12121.99813761,0.00038672,2]
[404775906,1770533442098,-2086.60585807,0.00038672,2]
[404775907,1770533442125,-709.35,0.00031967,2]
[404775908,1770533445751,-1055.64450942,0.00031967,2]
[404775909,1770533445930,-330.0,0.00031967,2]
[404775918,1770533447895,-833.36972891,0.00028967,2]
[404775972,1770533639331,1537.26,0.00035616,30]
[404775978,1770533890346,-166.03,0.00017766,2]
[404775979,1770533890375,-160.0,0.00028453,2]
[404775980,1770533890406,-160.0,0.0002846,2]
[404775981,1770533890435,-217.01480573,0.00028764,2]
[404775982,1770533890463,-600.0,0.00028883,2]
[404775983,1770533890491,-332.73,0.00028883,2]
[404775984,1770533890521,-1613.63027109,0.00028967,2]
[404775985,1770533890549,-400.0,0.00030047,2]
[404775986,1770533890579,-250.0,0.00030048,2]
[404775987,1770533890607,-5632.109,0.00030048,2]
[404775988,1770533890637,-412.0,0.00030048,2]
[404775989,1770533890664,-922.428,0.00030048,2]
[404775990,1770533890689,-1213.662,0.00030048,2]
[404775991,1770533890714,-1160.00549058,0.00031967,2]
[404775992,1770533890741,-2447.0,0.00031967,2]
[404775993,1770533890769,-560.0,0.00032383,2]
[404775994,1770533890798,-509.0,0.00032616,2]
[404775995,1770533890827,-509.0,0.00032616,2]
[404775996,1770533890853,-412.0,0.00033048,2]
[404775997,1770533890880,-917.0,0.00033048,2]
[404775998,1770533890908,-1206.0,0.00033048,2]
[404775999,1770533890938,-168.0,0.00033278,2]
[404776000,1770533890976,-200.0,0.00034005,2]
[404776001,1770533891001,-1852.42,0.00034161,2]
[404776002,1770533891027,-509.0,0.00034371,4]
[404776003,1770533891054,-271.05047035,0.00034767,2]
[404776004,1770533891080,-8388.58350764,0.000348,2]
[404776005,1770533891112,-4681.02376304,0.000348,2]
[404776006,1770533891147,-444.69236091,0.000348,2]
[404776007,1770533891177,-296.0,0.00034829,2]
[404776008,1770533891207,-151.0,0.00034864,14]
[404776009,1770533891548,-1087.9262344,0.00034866,2]
[404776010,1770533891576,-318.73126935,0.00034866,7]
[404776011,1770533891604,-278.97640306,0.00034866,7]
[404776012,1770533891637,-500.0,0.00034866,7]
[404776013,1770533891663,-331.35174313,0.00034866,7]
[404776014,1770533891691,-500.0,0.00034866,7]
[404776015,1770533891720,-342.7887505,0.00034866,7]
[404776016,1770533891747,-500.0,0.00034866,7]
[404776017,1770533891776,-829.01506934,0.00034866,7]
[404776018,1770533891804,-286.91744493,0.00034866,7]
[404776019,1770533891833,-829.01506934,0.00034866,7]
[404776020,1770533891860,-829.01506934,0.00034866,7]
[404776021,1770533891891,-829.01506934,0.00034866,7]
[404776022,1770533891919,-829.01506934,0.00034866,7]
[404776023,1770533891949,-829.01506934,0.00034866,7]
[404776024,1770533891977,-829.01506934,0.00034866,7]
[404776025,1770533892006,-829.01506934,0.00034866,7]
[404776026,1770533892032,-829.01506934,0.00034866,7]
[404776027,1770533892062,-829.01506934,0.00034866,7]
[404776028,1770533892089,-801.77779189,0.00034866,7]
[404776029,1770533892123,-27.23727745,0.00034866,7]
[404776030,1770533892150,-829.01506934,0.00034866,7]
[404776031,1770533892177,-829.01506934,0.00034866,7]
[404776032,1770533892208,-829.01506934,0.00034866,7]
[404776033,1770533892235,-829.01506934,0.00034866,7]
[404776034,1770533892263,-829.01506934,0.00034866,7]
[404776035,1770533892290,-829.01506934,0.00034866,7]